Cogmind - Beta 17 @@@ ROGUE MODE // 2026.08.13 @ 01:25:35 Player: Nell Result: Destroyed by D-53 Grenadier with Mini Grenade Launcher Performance ------------- Evolutions (0) 0 Regions Visited (2) 400 Robots Destroyed (16) 80 Value Destroyed (335) 335 Prototype IDs (2) 40 Alien Tech Used (0) 0 Bonus (0) 0 TOTAL SCORE: 855 Bonus ------- None Cogmind --------- Core Integrity 0/250 Matter 300/300 Energy 125/125 System Corruption 0% Temperature Cool (0) Movement Walking (120) Location -10/Mines Parts ------- > --- POWER (1) -------- Light Ion Engine > --- PROPULSION (2) --- Aluminum Leg > --- UTILITY (2) ------ Small Storage Unit Improved Targeting Computer > --- WEAPON (2) ------- (None) > --- INVENTORY (8) ---- Light Ion Engine Light Ion Engine Heat Sink Large Battery (200) Sensor Array Improved Targeting Computer ECM Suite Light Armor Plating Peak State ------------ > --- POWER ------------ Light Ion Engine > --- PROPULSION ------- Aluminum Leg Aluminum Leg > --- UTILITY ---------- Small Storage Unit Visual Processing Unit > --- WEAPON ----------- Medium Laser Small Laser > --- INVENTORY -------- Light Ion Engine Heat Sink Large Battery Sensor Array Targeting Computer ECM Suite Light Armor Plating Medium Laser [Rating: 8] Favorites ----------- Power Light Ion Engine Engine Light Ion Engine Propulsion Aluminum Leg Leg Aluminum Leg Utility Small Storage Unit Device Seismic Detector Storage Small Storage Unit Processor Improved Targeting Computer Weapon Medium Laser Energy Gun Medium Laser Ballistic Gun Light Assault Rifle Build | -11 -10 -10 ------- Run | Yrd Mat Min Slots Evolved . | . . . Power . | . . . Propulsion . | . . . Utility . | . . . Weapon . | . . . Parts Attached 23 | 7 14 2 Power 5 | 1 3 1 Engine 5 | 1 3 1 Core . | . . . Reactor . | . . . Propulsion 7 | 2 5 . Treads . | . . . Leg 7 | 2 5 . Wheel . | . . . Hover . | . . . Flight . | . . . Utility 6 | 2 4 . Device 1 | 1 . . Storage 2 | 1 1 . Processor 3 | . 3 . Hackware . | . . . Protection . | . . . Artifact . | . . . Weapon 5 | 2 2 1 Energy Gun 4 | 1 2 1 Energy Cannon . | . . . Ballistic Gun 1 | 1 . . Ballistic Cannon . | . . . Launcher . | . . . Special Weapon . | . . . Impact Weapon . | . . . Slashing Weapon . | . . . Piercing Weapon . | . . . Special Melee Weapon . | . . . Unidentified Prototypes . | . . . Parts Lost 5 | . 1 4 Power 1 | . 1 . Propulsion 1 | . . 1 Utility . | . . . Weapon 3 | . . 3 Highest Loss Streak 3 | . 1 3 To Critical Strikes . | . . . Average Backups 7 | 3 7 7 Power 1 | 1 1 1 Propulsion . | 1 . . Utility 4 | . 4 6 Weapon . | . 1 . Tool/Special . | . . . Unused Backups 12 | . 7 5 Power 1 | . 1 . Propulsion 2 | . 2 . Utility 6 | . 1 5 Weapon 3 | . 3 . Tool/Special . | . . . Average Slot Usage (%) 99 | . 100 99 Engine 14 | . 14 14 Leg 28 | . 28 28 Storage 18 | . 21 14 Processor 8 | . 5 14 Energy Gun 24 | . 23 27 Ballistic Gun 2 | . 4 . Peak Build Rating 8 | 7 8 8 Average Rating 7 | 5 7 7 On Entrance 5 | . 7 8 Avg Prop Armor Cover (%) . | . . . Naked Turns . | . . . Heaviest Build 14 | 12 14 12 Greatest Support 20 | 20 20 20 Greatest Overweight (x) 1 | 1 . . Average Overweight (x) . | . . . Largest Inventory Capacity 8 | 8 8 8 Average Capacity 7 | 7 8 8 Most Carried 8 | 5 8 8 Average Carried 7 | 4 7 7 Final Capacity 8 | 8 8 8 Final Carried 8 | 5 8 8 Class Distribution -------------------- 100% | Mutant Dominant Class ---------------- Mutant | -10/Materials Mutant | -10/Mines Resources | -11 -10 -10 ----------- Run | Yrd Mat Min Matter Collected 445 | 276 139 30 Remotely . | . . . Salvage Created 484 | 112 317 55 Parts 27 | 4 17 6 Haulers Intercepted . | . . . Recyclers Shooed . | . . . Parts Field Recycled . | . . . Retrieved Matter . | . . . Parts Self-Destructed . | . . . Prevented . | . . . Parts Restored . | . . . Kills | -11 -10 -10 ------- Run | Yrd Mat Min Combat Hostiles Destroyed 12 | . 9 3 Guns 11 | . 8 3 Classes Destroyed 5 | 2 3 . Tunneler 1 | 1 . . Recycler 1 | 1 . . Watcher 2 | . 2 . Swarmer 6 | . 3 3 Grunt 6 | . 6 . Best Kill Streak 3 | 2 3 3 Combat Bots Only 3 | . 3 3 Max Kills in Single Turn 1 | 1 1 1 Gunslinging . | . . . Exploded . | . . . Melee . | . . . Uniques/NPCs Destroyed . | . . . Combat | -11 -10 -10 -------- Run | Yrd Mat Min Hostile Shots Fired 74 | . 44 30 Missed 11 | . 8 3 Hits 63 | . 36 27 Projectile 63 | . 36 27 AOE 8 | . . 8 Critical Strikes 1 | . . 1 Damage Taken 905 | . 428 477 Core 265 | . 83 182 Absorbed by Shields . | . . . Core Remaining (%) 100 | 100 . . Volleys Fired 57 | 6 42 9 Largest 2 | 2 2 2 Hottest 100 | 70 90 100 Shots Fired 113 | 12 84 17 Gun 113 | 12 84 17 Cannon . | . . . Launcher . | . . . Special . | . . . Kinetic 20 | 6 14 . Thermal 93 | 6 70 17 Explosive . | . . . Electromagnetic . | . . . Robot Hit Streak 7 | 2 7 3 Robot Miss Streak 3 | 2 3 3 Penetration Max . | . . . Secondary Targets . | . . . Shots Hit Robots 60 | 5 47 8 Core Hits 31 | 4 24 3 Critical Kills . | . . . Critical Parts Destroyed . | . . . Critical Strikes 5 | . 3 2 Burn 5 | . 3 2 Melee Attacks . | . . . Impact . | . . . Slashing . | . . . Piercing . | . . . Sneak Attacks . | . . . Combat Hostiles . | . . . Follow-up Attacks . | . . . Damage Inflicted 734 | 50 550 134 Guns 697 | 50 526 121 Cannons . | . . . Explosions . | . . . Melee . | . . . Ramming 37 | . 24 13 Kinetic 56 | 12 44 . Thermal 641 | 38 482 121 Explosive . | . . . Electromagnetic . | . . . Impact . | . . . Slashing . | . . . Piercing . | . . . Highest Corruption . | . . . Average Corruption . | . . . Corruption Purged . | . . . Corruption Blocked . | . . . Overload Shots . | . . . Overflow Damage . | . . . Projectiles . | . . . Explosions . | . . . Melee . | . . . Knockbacks . | . . . Impact . | . . . Kinetic . | . . . Secondary . | . . . Self-Inflicted Damage . | . . . Shots . | . . . Rammed . | . . . Targets Rammed 8 | . 6 2 Kicked 8 | . 6 2 Crushed . | . . . Highest Temperature 154 | 70 154 148 Average Temperature 52 | 41 52 55 Received Heat Transfer 207 | . 207 . Siege Activations . | . . . Martial Activations . | . . . Shielding Activations . | . . . Robots Disrupted . | . . . Combat Hostiles . | . . . Robots Corrupted . | . . . Combat Hostiles . | . . . Parts Fried . | . . . Impact Corruptions . | . . . Robots Melted 1 | . 1 . Combat Hostiles 1 | . 1 . Parts Melted 5 | . 5 . Heat Transferred 2128 | 111 1523 494 Parts Sabotaged . | . . . Parts Stolen . | . . . Parts Stripped . | . . . Power Chain Reactions . | . . . Alert | -11 -10 -10 ------- Run | Yrd Mat Min Maximum Alert Level . | . . . Low Security (%) 100 | 100 100 100 Level 1 . | . . . Level 2 . | . . . Level 3 . | . . . Level 4 . | . . . Level 5 . | . . . High Security . | . . . Max Security . | . . . Peak Influence 51 | 5 51 50 Initial . | . . . Average 10 | 1 13 5 Influence Increases 335 | 10 255 70 Destroy 0b10 Robot/C 240 | . 180 60 Destroy 0b10 Robot/NC 20 | 10 10 . Destroy Leader 44 | . 34 10 Successful Hack 16 | . 16 . Lose Combat Pursuer 15 | . 15 . Influence Decreases 335 | 10 255 70 Time Decay 315 | 10 245 60 Lost Part 20 | . 10 10 Squads Dispatched . | . . . Investigation . | . . . Extermination . | . . . Reinforcement . | . . . Assault . | . . . Garrison . | . . . Intercept . | . . . Searches Triggered . | . . . Construction Impeded . | . . . Haulers Reinforced . | . . . Active Scanning Responses . | . . . Cargo Convoy Interrupts . | . . . Stealth | -11 -10 -10 --------- Run | Yrd Mat Min Distress Signals 4 | . 3 1 Communications Jammed . | . . . Distress Signals . | . . . Times Spotted 24 | . 20 4 Peak Tracking Total 3 | . 3 3 Tactical Retreats 1 | . 1 . Traps | -11 -10 -10 ------- Run | Yrd Mat Min Traps Triggered . | . . . Indirectly . | . . . Trap Hack Attempts . | . . . Triggered . | . . . Disarmed . | . . . Reprogrammed . | . . . Reused . | . . . Traps Extracted . | . . . Installed . | . . . Triggered . | . . . Machines | -11 -10 -10 ---------- Run | Yrd Mat Min Machines Disabled . | . . . Max in Single Turn . | . . . Machines Repaired . | . . . Machines Dismantled . | . . . Machines Sabotaged . | . . . Overloaded Fab Kills . | . . . Hacking | -11 -10 -10 --------- Run | Yrd Mat Min Machines Accessed 9 | . 8 1 Terminals 7 | . 7 . Fabricators . | . . . Repair Stations 1 | . 1 . Recycling Units . | . . . Scanalyzers . | . . . Garrison Access . | . . . Total Hacks 20 | . 19 1 Successful 9 | . 8 1 Failed 11 | . 11 . Catastrophic . | . . . Database Lockouts . | . . . Manual 5 | . 5 . Terminals 17 | . 17 . Fabricators . | . . . Repair Stations 2 | . 2 . Recycling Units . | . . . Scanalyzers . | . . . Garrison Access . | . . . Terminal Hacks 8 | . 7 1 Prototype ID Bank 1 | . 1 . Open Door 1 | . . 1 Locate Traps 3 | . 3 . Hauler Manifests 2 | . 2 . Zone Layout 1 | . 1 . Fabricator Hacks . | . . . Repair Station Hacks 1 | . 1 . Scan Component 1 | . 1 . Recycling Unit Hacks . | . . . Scanalyzer . | . . . Garrison Access Hacks . | . . . Unauthorized Hacks . | . . . Terminals . | . . . Fabricators . | . . . Repair Stations . | . . . Recycling Units . | . . . Scanalyzers . | . . . Garrison Access . | . . . Data Cores Recovered . | . . . Used . | . . . Hacking Detections 8 | . 8 . Full Trace Events . | . . . Feedback Events . | . . . Feedback Blocked . | . . . Robot Schematics Acquired . | . . . Robots Built . | . . . Authchips . | . . . Time . | . . . Total Robot Build Rating . | . . . Part Schematics Acquired . | . . . Parts Built . | . . . Authchips . | . . . Time . | . . . Total Part Build Rating . | . . . Part Studies Acquired . | . . . Parts Repaired . | . . . Time . | . . . Parts Recycled . | . . . Recycled Matter . | . . . Retrieved Matter . | . . . Retrieved Components . | . . . Parts Scanalyzed . | . . . Part Schematics Acquired . | . . . Parts Damaged . | . . . Bothacking | -11 -10 -10 ------------ Run | Yrd Mat Min Used RIF Installer . | . . . Robots Hacked . | . . . Non-combat . | . . . Combat . | . . . Robot Hacks Applied . | . . . Relay Couplers Released . | . . . Fabnet Peak Effective % . | . . . Robots Rewired . | . . . Allies Hacked . | . . . Hacks Repelled . | . . . Allies | -11 -10 -10 -------- Run | Yrd Mat Min Total Allies . | . . . Largest Group . | . . . Highest-Rated Group . | . . . Highest-Rated Ally . | . . . Total Orders . | . . . Ally Attacks . | . . . Total Damage . | . . . Kills . | . . . Allies Corrupted . | . . . Allies Melted . | . . . Intel | -11 -10 -10 ------- Run | Yrd Mat Min Active Infowar (turns) 88 | 24 64 . Optics 3 | . 3 . Seismic 85 | 24 61 . Robot Analysis Total . | . . . Derelict Logs Recovered 1 | . . 1 Drone Launches . | . . . Drone Recoveries . | . . . Exploration | -11 -10 -10 ------------- Run | Yrd Mat Min Turns Passed 1823 | 94 1102 627 Spaces Moved 1248 | 56 751 441 Core 11 | 11 . . Treads . | . . . Legs 1237 | 45 751 441 Wheels . | . . . Hover . | . . . Flight . | . . . Fastest Speed 50 | 50 120 120 Average Speed 119 | 110 120 120 Slowest Speed 120 | 120 120 120 Overloaded Moves . | . . . Propulsion Burnouts . | . . . Robots Hopped . | . . . Potential Cave-ins . | . . . Cave-ins Triggered . | . . . Exploration Rate (%) 50 | 4 93 53 Regions Visited 2 Branch Regions 1 Pre-discovered Areas . | . . . Known Exits Taken . | . . . Unknown Exits Taken 2 | 1 1 . Scrap Searched 1 | . . 1 Spaces Dug . | . . . Terrain Destroyed . | . . . Melee . | . . . Projectile . | . . . AOE . | . . . Terrain Rammed . | . . . Walls Destroyed . | . . . Machines Disabled . | . . . Actions | -11 -10 -10 --------- Run | Yrd Mat Min Total 1471 | 73 876 522 Wait 100 | . 34 66 Move 1246 | 55 750 441 Hop . | . . . Pick Up 17 | 5 12 . Fast Attach 7 | 7 . . Attach 2 | . 1 1 Detach . | . . . Swap 16 | . 14 2 Drop 18 | . 17 1 Fire 57 | 6 42 9 Melee . | . . . Ram . | . . . Kick 8 | . 6 2 Crush . | . . . Escape Stasis . | . . . Rewire . | . . . Trap . | . . . Miscellaneous . | . . . Route ------- -11/Scrapyard -10/Materials (discovered 6 exits: [*Mat x3] / *Min x2 / [*Sub]) -10/Mines (discovered 1 exit: [*Mat]) History --------- Turn | Location | Event 9 | -11/Scrapyard | Discovered new exit (range 16) 95 | -11/Scrapyard | Entered Materials 216 | -10/Materials | Discovered new exit (range 7) 310 | -10/Materials | Build established: Mutant 378 | -10/Materials | Discovered new exit (range 14) 410 | -10/Materials | Discovered new exit (range 6) 501 | -10/Materials | Discovered new exit (range 6) 697 | -10/Materials | Discovered new exit (range 10) 1071 | -10/Materials | Discovered new exit (range 15) 1197 | -10/Materials | Entered Mines 1207 | -10/Mines | Found the Drone Emporium 1363 | -10/Mines | Assembled infested the area 1560 | -10/Mines | Core integrity fell below 50% 1611 | -10/Mines | Discovered new exit (range 6) 1629 | -10/Mines | Learned Materials non-interactive machine intel 1820 | -10/Mines | Core integrity fell below 20% 1824 | -10/Mines | Destroyed by D-53 Grenadier with Mini Grenade Launcher Last Messages --------------- 01575_ U-05 Engineer builds a Wall. 01578_ K-01 Serf collects debris. 01584_ Acquired 10 matter. 01587_ K-01 Serf collects debris. 01589_ U-05 Engineer builds a Wall. 01592_ K-01 Serf collects debris. 01593_ U-05 Engineer lays Concrete. 01594_ U-05 Engineer builds a Wall. 01611_ EXIT=FOUND 01629_ Acquired derelict log, extracted data. Data stored: Materials non-interactive machine intel. 01690_ U-05 Engineer builds a Wall. 01791_ Kicked K-01 Serf. 01800_ Kicked T-07 Excavator. 01800_ T-07 Excavator sends out distress signal. 01811_ Med. Laser destroyed. 01812_ The unstable cave ceiling collapses. 01817_ Med. Laser destroyed. 01820_ The unstable cave ceiling collapses. 01822_ Aluminum Leg destroyed. Map ----- +----------------------------------------------------+ | ???????????????# #??# #?????## ### # | | ???????????????# #??# #### #????# ### ## | | ???????????????# #??# #??## #????# X | | ?????????####### #??# #???## ##????## | | ?????????# #??# #########??????# | | ?????????# ######??# #?????????## | | ########## #???????##### #??????????# ### | | # ! ###?????????#| #??????????# ##?#### | | # * ##????????# %#??????????## #?????? | | # #### ! ##??????##%]###?????????# #?????? | | # ##### ######## ######????# #?????? | | #### ## ##??? #?????? | | #?# [ #### #??# ?????? | | ### ## ##??## #??## ?????? | | ### #### = ##????## #???## ##????? | | ######?# ##?## ####??????### ###????## #?????? | | ???????## #?## ##???????????# #???????? #?????? | | ????????# #?# #????????????# #???????? ?????? | | ????????# #?# #???????????# #????????##?????? | | ????????# #?## #?????###### #???????????????? | | ######### #??# ## ##??#### #???????????????? | | #??# ?######## ## ######???????????????? | | ### #######??# ?## # #????????????????????? | | #?# #???????? ?# # #????????????????????? | | ?? ???????? ?# #????????????????????? | | ## ?????? ### @ #????????????????????? | | ? ????? ?# ###????????????????????? | | ## ???? ?# #??????????????????????? | | ?### ???????# #??????????????????????? | | ????# ??????## ##??????????????????????? | | ????? ? ##??????# # ##???????????????????????? | | ????? ?##???????### d# ##????????????????????????? | | ????? ???????????## ###?????????????????????????? | | ????? ??????????? ??????????????????????????? | | ????? ??????????#### ##?????????????????????????? | | ??????#?????????????? #??????????????????????????? | | ????????????????????? #??????????????????????????? | | ????????????????????? #??????????????????????????? | | ????????????????????? ??????????????????????????? | | ????????????????????? ??????????????????????????? | | ????????????????????? ??????????????????????????? | | ????????????????????? ?????????????????????????? | | ?????????????????????? ?????????????????????????? | | ?????????????????????? ?????????????????????????? | | ?????????????????????? ?????????????????????????? | | ??????????????????????# ????????????????????????? | | ???????????????????????? ????????????????????????? | | ?????????????????????????????????????????????????? | | ?????????????????????????????????????????????????? | | ?????????????????????????????????????????????????? | +----------------------------------------------------+ Best States ------------- Heat Dissipation 25 Energy Generation 10 Energy Capacity 325 Matter Stores 300 Matter Capacity 300 Sight Range 16 Terrain Scan Density 10 Evasion (%) 55 Targeting Accuracy 6 Item Schematics ----------------- None Robot Schematics ------------------ None Fabricated ------------ Nothing Repaired ---------- Nothing Studied --------- None Alien Tech Used ----------------- None Achievements -------------- None Challenges ------------ None Game ------ Seed IonicGaussTreads Manual? 0 Play Time 00:21:12 Cumulative 45.2 hours Start 2026.08.13 @ 00:56:27 End 2026.08.13 @ 01:25:35 Sessions 1 Manual Loads 0 Difficulty Rogue Special Mode None Game No. 80 Rogue 80 Adventurer 0 Explorer 0 Win Type - Total 1 Types 1/0/0/0/0/0/0/0/0/0 Lore% 27 Gallery% 36 Achievement% 21 Wizard Run 0 Options --------- Layout 0 ASCII 0 Keyboard 1 Movement Arrows Keybinds 0 Fullscreen 2 Font 24/Smallcaps Map View 76x50 Zoom Use 0% Tactical HUD 1 Map Filters NONE Filters NONE Steam 1 RUN: 8120fe81-3eab-443a-b109-c71fa6929cba